Cogmind - Beta 13 @@@ ROGUE MODE // 2024.04.04 @ 14:44:21 Player: Appleyapple Result: Destroyed by as-59940 with Assembled Rifle Performance ------------- Evolutions (1) 500 Regions Visited (3) 600 Robots Destroyed (34) 170 Value Destroyed (781) 781 Prototype IDs (0) 0 Alien Tech Used (0) 0 Bonus (0) 0 TOTAL SCORE: 2051 Bonus ------- None Cogmind --------- Core Integrity 0/400 Matter 311/400 Energy 97/100 System Corruption 0% Temperature Cool (0) Movement Core (150) Ox2 Location -9/Mines Parts ------- > --- POWER (1) -------- (None) > --- PROPULSION (2) --- (None) > --- UTILITY (3) ------ Medium Matter Pod Structural Scanner > --- WEAPON (3) ------- Beam Rifle Light Assault Rifle > --- INVENTORY (5) ---- (None) Peak State ------------ > --- POWER ------------ Light Nuclear Core > --- PROPULSION ------- Aluminum Leg Aluminum Leg > --- UTILITY ---------- Heat Sink Medium Matter Pod Medium Armor Plating > --- WEAPON ----------- Medium Laser Spread Laser Particle Cannon > --- INVENTORY -------- (None) [Rating: 14] Favorites ----------- Power Light Ion Engine Engine Light Ion Engine Power Core Light Nuclear Core Propulsion Aluminum Leg Treads Light Treads Leg Aluminum Leg Wheel Wheel Flight Unit Flight Unit Utility Medium Matter Pod Device Heat Sink Storage Medium Matter Pod Protection Medium Armor Plating Weapon Light Assault Rifle Energy Gun Medium Laser Energy Cannon Particle Cannon Ballistic Gun Light Assault Rifle Launcher Rocket Launcher Special Weapon Welding Torch Build | -11 -10 -9 -9 ------- Run | Yrd Mat Mat Min Slots Evolved 2 | . . 2 . Power . | . . . . Propulsion . | . . . . Utility 1 | . . 1 . Weapon 1 | . . 1 . Parts Attached 48 | 9 14 22 3 Power 5 | 1 1 3 . Engine 4 | 1 . 3 . Core 1 | . 1 . . Reactor . | . . . . Propulsion 13 | 5 2 6 . Treads 1 | . . 1 . Leg 4 | 2 2 . . Wheel 6 | 3 . 3 . Hover . | . . . . Flight 2 | . . 2 . Utility 12 | 1 6 5 . Device 9 | 1 4 4 . Storage 2 | . 2 . . Processor . | . . . . Hackware . | . . . . Protection 1 | . . 1 . Artifact . | . . . . Weapon 18 | 2 5 8 3 Energy Gun 7 | 1 2 3 1 Energy Cannon 2 | . 1 1 . Ballistic Gun 5 | 1 1 1 2 Ballistic Cannon . | . . . . Launcher 3 | . 1 2 . Special Weapon 1 | . . 1 . Impact Weapon . | . . . . Slashing Weapon . | . . . . Piercing Weapon . | . . . . Special Melee Weapon . | . . . . Unidentified Prototypes . | . . . . Parts Lost 20 | . 1 17 2 Power 4 | . . 4 . Propulsion 4 | . . 4 . Utility 4 | . . 4 . Weapon 8 | . 1 5 2 Highest Loss Streak 6 | . 1 6 2 To Critical Strikes . | . . . . Average Slot Usage (%) 84 | . 98 76 55 Engine 5 | . 5 6 . Core 3 | . 8 1 . Treads 1 | . . 2 . Leg 16 | . 28 10 . Wheel 1 | . . 2 . Flight 1 | . . 2 . Device 11 | . 14 9 11 Storage 11 | . 12 11 11 Protection 3 | . . 5 . Energy Gun 9 | . 10 9 2 Energy Cannon 4 | . . 7 . Ballistic Gun 9 | . 13 6 22 Launcher 2 | . 3 1 8 Naked Turns . | . . . . Heaviest Build 24 | 8 15 24 9 Greatest Support 20 | 20 20 20 3 Greatest Overweight (x) 4 | . . 4 2 Average Overweight (x) . | . . . 2 Largest Inventory Capacity 8 | 5 8 5 5 Average Capacity 5 | 5 7 5 5 Most Carried 8 | 4 8 4 2 Average Carried 1 | 2 2 1 . Final Capacity 5 | 5 5 5 5 Final Carried 3 | 2 2 3 . Class Distribution -------------------- 37% | Mutant 28% | Scavenger-Mutant 18% | Scavenger-Tank 8% | Scavenger-Skirmisher 6% | Scavenger-Gunner Dominant Class ---------------- Mutant | -10/Materials Scavenger-Tank | -9/Materials Scavenger-Skirmisher | -9/Mines Resources | -11 -10 -9 -9 ----------- Run | Yrd Mat Mat Min Matter Collected 778 | 274 274 230 . Remotely . | . . . . Salvage Created 1077 | 49 236 770 22 Parts 61 | 2 13 46 . Haulers Intercepted 1 | . . 1 . Recyclers Shooed . | . . . . Parts Field Recycled . | . . . . Retrieved Matter . | . . . . Parts Self-Destructed . | . . . . Prevented . | . . . . Kills | -11 -10 -9 -9 ------- Run | Yrd Mat Mat Min Combat Hostiles Destroyed 36 | 1 7 22 6 Guns 19 | 1 7 11 . Cannons 2 | . . 2 . AOE 14 | . . 8 6 Classes Destroyed 8 | 1 2 4 1 Worker 1 | . 1 . . Builder 1 | . . 1 . Hauler 1 | . . 1 . Recycler 1 | . . 1 . Swarmer 13 | . 3 10 . Grunt 14 | 1 4 9 . Sentry 3 | . . 3 . Assembled 6 | . . . 6 Best Kill Streak 6 | 1 6 6 6 Combat Bots Only 6 | 1 5 5 6 Max Kills in Single Turn 3 | 1 1 3 3 Gunslinging . | . . . . Exploded 3 | . . 3 3 Melee . | . . . . Uniques/NPCs Destroyed . | . . . . Combat | -11 -10 -9 -9 -------- Run | Yrd Mat Mat Min Hostile Shots Fired 229 | 3 67 134 25 Missed 77 | 1 28 41 7 Damage Taken 2167 | 21 458 1412 276 Core 470 | 11 59 311 89 Absorbed by Shields . | . . . . Core Remaining (%) 83 | 95 72 . . Volleys Fired 91 | 2 27 57 5 Largest 3 | 2 2 3 3 Hottest 183 | 70 70 183 96 Shots Fired 148 | 4 42 95 7 Gun 124 | 4 42 75 3 Cannon 16 | . . 16 . Launcher 8 | . . 4 4 Special . | . . . . Kinetic 50 | 2 19 27 2 Thermal 49 | 2 23 23 1 Explosive 8 | . . 4 4 Electromagnetic 41 | . . 41 . Robot Hit Streak 11 | 3 6 11 3 Robot Miss Streak 5 | 1 2 5 2 Penetration Max . | . . . . Secondary Targets 2 | . 1 1 . Max Gunslinging Chain 1 | . 1 1 . Shots Hit Robots 93 | 3 26 62 2 Core Hits 62 | 1 14 36 11 Critical Kills . | . . . . Critical Parts Destroyed . | . . . . Critical Strikes 4 | . 3 1 . Burn 3 | . 3 . . Corrupt 1 | . . 1 . Melee Attacks . | . . . . Impact . | . . . . Slashing . | . . . . Piercing . | . . . . Sneak Attacks . | . . . . Combat Hostiles . | . . . . Follow-up Attacks . | . . . . Damage Inflicted 2072 | 39 342 1339 352 Guns 1049 | 39 342 651 17 Cannons 167 | . . 167 . Explosions 856 | . . 521 335 Melee . | . . . . Ramming . | . . . . Kinetic 328 | 27 165 119 17 Thermal 620 | 12 177 431 . Explosive 685 | . . 350 335 Electromagnetic 439 | . . 439 . Impact . | . . . . Slashing . | . . . . Piercing . | . . . . Highest Corruption . | . . . . Average Corruption . | . . . . Corruption Purged . | . . . . Corruption Blocked . | . . . . Overload Shots . | . . . . Overflow Damage 28 | . . 15 13 Projectiles . | . . . . Explosions 28 | . . 15 13 Melee . | . . . . Knockbacks . | . . . . Impact . | . . . . Kinetic . | . . . . Secondary . | . . . . Self-Inflicted Damage 99 | . . 99 . Shots 4 | . . 4 . Rammed . | . . . . Targets Rammed . | . . . . Kicked . | . . . . Crushed . | . . . . Highest Temperature 199 | 24 14 199 40 Average Temperature 51 | 13 3 58 20 Received Heat Transfer 730 | 12 228 390 100 Siege Activations . | . . . . Robots Corrupted 1 | . . 1 . Combat Hostiles 1 | . . 1 . Parts Fried 3 | . . 3 . Impact Corruptions . | . . . . Robots Melted . | . . . . Combat Hostiles . | . . . . Parts Melted 3 | . 1 2 . Heat Transferred 1462 | 37 740 685 . Parts Sabotaged . | . . . . Parts Stolen . | . . . . Parts Stripped . | . . . . Power Chain Reactions 2 | . . 2 . Alert | -11 -10 -9 -9 ------- Run | Yrd Mat Mat Min Peak Influence 304 | 20 193 304 67 Initial 52 | . 13 13 52 Average 92 | 3 66 123 55 Maximum Alert Level 1 | . . 1 . Low Security (%) 98 | 100 100 97 100 Level 1 1 | . . 2 . Level 2 . | . . . . Level 3 . | . . . . Level 4 . | . . . . Level 5 . | . . . . High Security . | . . . . Max Security . | . . . . Squads Dispatched 5 | . 2 3 . Investigation 2 | . . 2 . Extermination . | . . . . Reinforcement 3 | . 2 1 . Assault . | . . . . Garrison . | . . . . Intercept . | . . . . Searches Triggered . | . . . . Construction Impeded . | . . . . Haulers Reinforced . | . . . . Active Scanning Responses . | . . . . Cargo Convoy Interrupts . | . . . . Stealth | -11 -10 -9 -9 --------- Run | Yrd Mat Mat Min Distress Signals 3 | . 1 2 . Communications Jammed . | . . . . Distress Signals . | . . . . Times Spotted 51 | 1 10 26 14 Peak Tracking Total 10 | 1 4 4 10 Tactical Retreats 2 | . . 1 1 Traps | -11 -10 -9 -9 ------- Run | Yrd Mat Mat Min Traps Triggered 3 | . . 3 . Indirectly . | . . . . Trap Hack Attempts . | . . . . Triggered . | . . . . Disarmed . | . . . . Reprogrammed . | . . . . Reused . | . . . . Traps Extracted . | . . . . Installed . | . . . . Triggered . | . . . . Machines | -11 -10 -9 -9 ---------- Run | Yrd Mat Mat Min Machines Disabled . | . . . . Max in Single Turn . | . . . . Machines Repaired . | . . . . Machines Dismantled . | . . . . Machines Sabotaged . | . . . . Overloaded Fab Kills . | . . . . Hacking | -11 -10 -9 -9 --------- Run | Yrd Mat Mat Min Machines Accessed 4 | . 2 2 . Terminals 3 | . 1 2 . Fabricators . | . . . . Repair Stations 1 | . 1 . . Recycling Units . | . . . . Scanalyzers . | . . . . Garrison Access . | . . . . Total Hacks 16 | . 10 6 . Successful 8 | . 5 3 . Failed 8 | . 5 3 . Catastrophic 1 | . . 1 . Database Lockouts . | . . . . Manual 2 | . . 2 . Terminals 10 | . 4 6 . Fabricators . | . . . . Repair Stations 6 | . 6 . . Recycling Units . | . . . . Scanalyzers . | . . . . Garrison Access . | . . . . Terminal Hacks 6 | . 3 3 . Record 2 | . . 2 . Alert Level 2 | . 2 . . Investigation Status 1 | . . 1 . Zone Layout 1 | . 1 . . Fabricator Hacks . | . . . . Repair Station Hacks 2 | . 2 . . Scan Component 1 | . 1 . . Repair 1 | . 1 . . Recycling Unit Hacks . | . . . . Scanalyzer . | . . . . Garrison Access Hacks . | . . . . Unauthorized Hacks . | . . . . Terminals . | . . . . Fabricators . | . . . . Repair Stations . | . . . . Recycling Units . | . . . . Scanalyzers . | . . . . Garrison Access . | . . . . Data Cores Recovered . | . . . . Used . | . . . . Hacking Detections 3 | . 2 1 . Full Trace Events 2 | . 1 1 . Feedback Events . | . . . . Feedback Blocked . | . . . . Robot Schematics Acquired . | . . . . Robots Built . | . . . . Authchips . | . . . . Time . | . . . . Total Robot Build Rating . | . . . . Part Schematics Acquired . | . . . . Parts Built . | . . . . Authchips . | . . . . Time . | . . . . Total Part Build Rating . | . . . . Parts Repaired . | . . . . Time 26 | . 26 . . Parts Recycled . | . . . . Recycled Matter . | . . . . Retrieved Matter . | . . . . Retrieved Components . | . . . . Parts Scanalyzed . | . . . . Part Schematics Acquired . | . . . . Parts Damaged . | . . . . Bothacking | -11 -10 -9 -9 ------------ Run | Yrd Mat Mat Min Used RIF Installer . | . . . . Robots Hacked . | . . . . Non-combat . | . . . . Combat . | . . . . Robot Hacks Applied . | . . . . Relay Couplers Released . | . . . . Fabnet Peak Effective % . | . . . . Robots Rewired . | . . . . Allies Hacked . | . . . . Hacks Repelled . | . . . . Allies | -11 -10 -9 -9 -------- Run | Yrd Mat Mat Min Total Allies . | . . . . Largest Group . | . . . . Highest-Rated Group . | . . . . Highest-Rated Ally . | . . . . Total Orders . | . . . . Ally Attacks . | . . . . Total Damage . | . . . . Kills . | . . . . Allies Corrupted . | . . . . Allies Melted . | . . . . Intel | -11 -10 -9 -9 ------- Run | Yrd Mat Mat Min Robot Analysis Total . | . . . . Derelict Logs Recovered . | . . . . Drone Launches . | . . . . Drone Recoveries . | . . . . Exploration | -11 -10 -9 -9 ------------- Run | Yrd Mat Mat Min Turns Passed 1481 | 131 488 825 37 Spaces Moved 856 | 111 318 411 16 Core 95 | 38 . 41 16 Treads 84 | . . 84 . Legs 572 | 62 318 192 . Wheels 57 | 11 . 46 . Hover . | . . . . Flight 48 | . . 48 . Fastest Speed 37 | 50 120 37 150 Average Speed 130 | 92 120 147 150 Slowest Speed 250 | 120 120 250 150 Overloaded Moves . | . . . . Propulsion Burnouts . | . . . . Robots Hopped . | . . . . Cave-ins Triggered . | . . . . Exploration Rate (%) 18 | 7 32 27 7 Regions Visited 3 Branch Regions 1 Pre-discovered Areas . | . . . . Known Exits Taken . | . . . . Unknown Exits Taken 3 | 1 1 1 . Scrap Searched . | . . . . Spaces Dug . | . . . . Terrain Destroyed 83 | . . 31 52 Melee . | . . . . Projectile . | . . . . AOE 83 | . . 31 52 Terrain Rammed . | . . . . Walls Destroyed . | . . . . Machines Disabled . | . . . . Actions | -11 -10 -9 -9 --------- Run | Yrd Mat Mat Min Total 1110 | 138 394 554 24 Wait 20 | . . 20 . Move 853 | 110 317 410 16 Hop . | . . . . Pick Up 50 | 11 14 25 . Fast Attach . | . . . . Attach 48 | 9 14 22 3 Detach 23 | 3 11 9 . Swap . | . . . . Drop 25 | 3 11 11 . Fire 91 | 2 27 57 5 Melee . | . . . . Ram . | . . . . Kick . | . . . . Crush . | . . . . Escape Stasis . | . . . . Rewire . | . . . . Trap . | . . . . Miscellaneous . | . . . . Route ------- -11/Scrapyard -10/Materials -9/Materials -9/Mines History --------- Turn | Location | Event 2 | -11/Scrapyard | Met Revision 17 96 | -11/Scrapyard | Discovered new exit (range 8) 132 | -11/Scrapyard | Entered Materials 315 | -10/Materials | Build established: Mutant 577 | -10/Materials | Discovered new exit (range 7) 620 | -10/Materials | Entered another Materials area 620 | -9/Materials | Evolved 2 slots: Utility x1, Weapon x1 1108 | -9/Materials | Lost 6 parts (1p2n1u2w) 1223 | -9/Materials | Discovered new exit (range 8) 1276 | -9/Materials | Core integrity fell below 50% 1349 | -9/Materials | Lost 5 parts (1p1u3w) 1445 | -9/Materials | Entered Mines 1451 | -9/Mines | Assembled infested the area 1456 | -9/Mines | Assisted by a Guerilla fighting off Assembled 1469 | -9/Mines | Core integrity fell below 20% 1482 | -9/Mines | Destroyed by as-59940 with Assembled Rifle Last Messages --------------- Destroyed Asb. F-torch. as-37850 destroyed. BR-9M3(h) system corrupted by crushing effect. BR-9M3(h) knocked back. HV Slug penetrates Wall. as-00358 destroyed. as-98862 destroyed. as-02540 destroyed. The unstable cave ceiling collapses. HV Slug penetrates as-19692. as-19692 suffers critical hit (Destroy). as-19692 destroyed. BR-9M3(h) heat damages Flexi-carbon Leg. BR-9M3(h) heat damages Fission Core. Rocket Launcher destroyed. as-29252 knocked back. BR-9M3(h) heat short circuits Bore Cannon. BR-9M3(h) heat damages core (-17). Lgt. Assault Rifle destroyed. [Achievement: First Step to Greatness] Map ----- +----------------------------------------------------+ | ?????????????????????????????????????????????????? | | ?????????????????????????????????????????????????? | | ?????????????????????????????????????????????????? | | ?????????????????????????????????????????????????? | | ?????????????????????????????????????????????????? | | ?????????????????????????????????????????????????? | | ?????????????????????????????????????????????????? | | ?????????????????????????????????????????????????? | | ?????????????????????????????????????????????????? | | ?????????????????????????????????????????????????? | | ??????????????? #???????????????????????????????? | | ??????????????? #??????????????????????????????? | | ???????????????? #?????????????????????????????? | | ???????????????? ?????????????????????????????? | | ???????????????? ?????????????????????????????? | | ????????????????? #????????????????????????????? | | ?????????????????? ###?????????????????????????? | | ??????????????????# ##????????????????????????? | | ??????????????????# ?????????????????????????? | | ?????????????????## ?????????????????????????? | | ?????????????????# #?????????????????????????? | | ?????????????????# ##??????????####??????????? | | ?????????????????# ###???#### ##?????????? | | ??????????????????# %% %#### #?????????? | | ?????????????????## #?????????? | | ?????????????????# %@ #??????????? | | ?????????????????# a #??????????? | | ?????????????????## ###;a aa $ #???????????? | | ??????????????????# ##?#;# a ##???????????? | | ??????????????????# ???#### # ####???????????? | | ??????????????????# ???????##?# #??????????????? | | ??????????????????# ????????????##??????????????? | | ??????????????????# ????????????????????????????? | | ??????????????????# ????????????????????????????? | | ??????????????????# ????????????????????????????? | | ??????????????????# ?????????????????????????????? | | ?????????????????? ?????????????????????????????? | | ?????????????????? ?????????????????????????????? | | ???????????????????#?????????????????????????????? | | ?????????????????????????????????????????????????? | | ?????????????????????????????????????????????????? | | ?????????????????????????????????????????????????? | | ?????????????????????????????????????????????????? | | ?????????????????????????????????????????????????? | | ?????????????????????????????????????????????????? | | ?????????????????????????????????????????????????? | | ?????????????????????????????????????????????????? | | ?????????????????????????????????????????????????? | | ?????????????????????????????????????????????????? | | ?????????????????????????????????????????????????? | +----------------------------------------------------+ Best States ------------- Heat Dissipation 38 Energy Generation 14 Energy Capacity 160 Matter Stores 400 Matter Capacity 400 Sight Range 16 Terrain Scan Density 10 Armor Coverage 225 Evasion (%) 62 Recoil Reduction 1 Item Schematics ----------------- None Robot Schematics ------------------ None Fabricated ------------ Nothing Alien Tech Used ----------------- None Achievements -------------- Crack Shot First Step to Greatness Loot Pinata One Hack Too Far Power Corrupts Storm Trooper Uninvited Guest Challenges ------------ None Game ------ Seed ThunderSignalBeam Manual? 0 Play Time 00:29:50 Cumulative 0.4 hours Start 2024.04.04 @ 14:14:59 End 2024.04.04 @ 14:44:21 Sessions 1 Manual Loads 0 Difficulty Rogue Special Mode None Game No. 1 Rogue 1 Adventurer 0 Explorer 0 Win Type - Total 0 Types 0/0/0/0/0/0/0/0/0 Lore% 0 Gallery% 2 Achievement% 2 Wizard Run 0 Options --------- Layout 1 ASCII 0 Keyboard 1 Movement Arrows Keybinds 0 Fullscreen 2 Font 24/Smallcaps Map View 50x35 Zoom Use 0% Tactical HUD 0 Map Filters NONE Filters NONE Steam 1 RUN: 729815cf-c4b4-4d00-ab9a-f5318662f741